[Event "Late-Titled-Tuesday-Blitz-June-18-2024"]
[Site "Chess.com"]
[Date "2024.06.18"]
[Round "1"]
[White "EternalNight8"]
[Black "GothamChess"]
[Result "1-0"]
[WhiteElo "2423"]
[BlackElo "2713"]
[TimeControl "180+1"]
[EndTime "14:07:19 PDT"]
[Termination "EternalNight8 won on time"]

1. e4 {[%clk 0:02:58.1]} 1... d5 {[%clk 0:02:59.2]} 2. exd5 {[%clk 0:02:58.1]}
2... Qxd5 {[%clk 0:02:59.2]} 3. Nc3 {[%clk 0:02:58.2]} 3... Qd6 {[%clk
0:02:59.7]} 4. d4 {[%clk 0:02:54.8]} 4... Nf6 {[%clk 0:02:59.6]} 5. Bd3 {[%clk
0:02:47.7]} 5... g6 {[%clk 0:02:56.8]} 6. Nge2 {[%clk 0:02:43.7]} 6... Bg7
{[%clk 0:02:55.8]} 7. Bf4 {[%clk 0:02:43]} 7... Qd8 {[%clk 0:02:54.3]} 8. O-O
{[%clk 0:02:42.7]} 8... c6 {[%clk 0:02:52.7]} 9. Ne4 {[%clk 0:02:28.4]} 9...
Nbd7 {[%clk 0:02:48.5]} 10. Nxf6+ {[%clk 0:02:25.6]} 10... Nxf6 {[%clk
0:02:49.4]} 11. c3 {[%clk 0:02:22.1]} 11... O-O {[%clk 0:02:49.3]} 12. Qc2
{[%clk 0:02:18.9]} 12... Qb6 {[%clk 0:02:49.2]} 13. Rfe1 {[%clk 0:02:14.2]}
13... Nd5 {[%clk 0:02:43.7]} 14. Bd2 {[%clk 0:02:11]} 14... c5 {[%clk
0:02:38.3]} 15. dxc5 {[%clk 0:02:01.3]} 15... Qxc5 {[%clk 0:02:39.2]} 16. Rad1
{[%clk 0:02:01.4]} 16... Bg4 {[%clk 0:02:28.8]} 17. h3 {[%clk 0:01:58.3]} 17...
Bxe2 {[%clk 0:02:24.9]} 18. Rxe2 {[%clk 0:01:59.2]} 18... Rac8 {[%clk
0:02:22.8]} 19. Rde1 {[%clk 0:01:57.3]} 19... e6 {[%clk 0:02:22.2]} 20. Be4
{[%clk 0:01:54]} 20... Rfd8 {[%clk 0:02:21.1]} 21. Qb3 {[%clk 0:01:43]} 21...
Rd7 {[%clk 0:02:16.8]} 22. Bxd5 {[%clk 0:01:19.5]} 22... Qxd5 {[%clk 0:02:14.5]}
23. Qxd5 {[%clk 0:01:19.3]} 23... Rxd5 {[%clk 0:02:15.4]} 24. Be3 {[%clk
0:01:15.5]} 24... a6 {[%clk 0:01:57]} 25. Rd2 {[%clk 0:01:13.2]} 25... Rcd8
{[%clk 0:01:52.9]} 26. Red1 {[%clk 0:01:11.7]} 26... Rxd2 {[%clk 0:01:25.1]} 27.
Rxd2 {[%clk 0:01:12.6]} 27... Rxd2 {[%clk 0:01:25.3]} 28. Bxd2 {[%clk
0:01:13.5]} 28... Kf8 {[%clk 0:01:25.5]} 29. b3 {[%clk 0:01:06.7]} 29... Ke7
{[%clk 0:01:22.6]} 30. c4 {[%clk 0:01:06.1]} 30... Bd4 {[%clk 0:01:22.6]} 31.
Kf1 {[%clk 0:01:04.9]} 31... Kd6 {[%clk 0:01:23]} 32. Ke2 {[%clk 0:01:04.9]}
32... e5 {[%clk 0:01:17]} 33. f3 {[%clk 0:01:03.6]} 33... f5 {[%clk 0:01:17]}
34. Kd3 {[%clk 0:01:04.1]} 34... h5 {[%clk 0:01:14.3]} 35. Bb4+ {[%clk
0:00:58.1]} 35... Kc6 {[%clk 0:01:13.1]} 36. a4 {[%clk 0:00:54]} 36... Bb6
{[%clk 0:01:11.3]} 37. Bc3 {[%clk 0:00:52.9]} 37... Bc7 {[%clk 0:01:11.5]} 38.
b4 {[%clk 0:00:49]} 38... Bd6 {[%clk 0:01:08.1]} 39. c5 {[%clk 0:00:48.8]} 39...
Bc7 {[%clk 0:01:07.4]} 40. Kc4 {[%clk 0:00:48.2]} 40... e4 {[%clk 0:00:16.7]}
41. fxe4 {[%clk 0:00:46.1]} 41... fxe4 {[%clk 0:00:17.6]} 42. b5+ {[%clk
0:00:46.4]} 42... axb5+ {[%clk 0:00:18.1]} 43. axb5+ {[%clk 0:00:47.3]} 43...
Kd7 {[%clk 0:00:18.8]} 44. Kd4 {[%clk 0:00:42.3]} 44... e3 {[%clk 0:00:12.4]}
45. Kxe3 {[%clk 0:00:41.6]} 45... Ke6 {[%clk 0:00:12.8]} 46. Ke4 {[%clk
0:00:41.4]} 46... Bd8 {[%clk 0:00:13.3]} 47. Be5 {[%clk 0:00:40.6]} 47... Ba5
{[%clk 0:00:10]} 48. b6 {[%clk 0:00:34.9]} 48... g5 {[%clk 0:00:07]} 49. c6
{[%clk 0:00:33.9]} 1-0

[Event "Late-Titled-Tuesday-Blitz-June-18-2024"]
[Site "Chess.com"]
[Date "2024.06.18"]
[Round "1"]
[White "djano"]
[Black "scabies1"]
[Result "0-1"]
[WhiteElo "2613"]
[BlackElo "2326"]
[TimeControl "180+1"]
[EndTime "14:07:19 PDT"]
[Termination "scabies1 won by checkmate"]

1. e4 {[%clk 0:03:00.9]} 1... c5 {[%clk 0:02:53.9]} 2. Nc3 {[%clk 0:03:00.1]}
2... e6 {[%clk 0:02:49.6]} 3. f4 {[%clk 0:02:59.8]} 3... a6 {[%clk 0:02:46.8]}
4. Nf3 {[%clk 0:02:59.6]} 4... Nc6 {[%clk 0:02:45.9]} 5. g3 {[%clk 0:02:57.2]}
5... d5 {[%clk 0:02:44.6]} 6. d3 {[%clk 0:02:56.8]} 6... Nf6 {[%clk 0:02:34.8]}
7. e5 {[%clk 0:02:56]} 7... d4 {[%clk 0:02:32.9]} 8. Ne4 {[%clk 0:02:50.5]} 8...
Nxe4 {[%clk 0:02:21.8]} 9. dxe4 {[%clk 0:02:51.4]} 9... Be7 {[%clk 0:02:21.6]}
10. Bg2 {[%clk 0:02:51]} 10... O-O {[%clk 0:02:21.4]} 11. O-O {[%clk 0:02:51.2]}
11... b5 {[%clk 0:02:21.9]} 12. g4 {[%clk 0:02:41.3]} 12... Qc7 {[%clk
0:02:21.5]} 13. g5 {[%clk 0:02:41.3]} 13... Bb7 {[%clk 0:02:20.8]} 14. Qe1
{[%clk 0:02:40.4]} 14... Nb4 {[%clk 0:02:16.8]} 15. Qf2 {[%clk 0:02:23.1]} 15...
Bxe4 {[%clk 0:02:13.1]} 16. Bd2 {[%clk 0:02:20.8]} 16... Nxc2 {[%clk 0:02:10.8]}
17. Rac1 {[%clk 0:02:18.9]} 17... d3 {[%clk 0:02:05.2]} 18. Nh4 {[%clk
0:02:09.9]} 18... Bxg2 {[%clk 0:02:05]} 19. Qxg2 {[%clk 0:02:10.8]} 19... c4
{[%clk 0:02:01.1]} 20. f5 {[%clk 0:02:06.5]} 20... Qxe5 {[%clk 0:01:59.1]} 21.
f6 {[%clk 0:02:01.5]} 21... Bc5+ {[%clk 0:01:59.4]} 22. Kh1 {[%clk 0:02:01.5]}
22... Qd5 {[%clk 0:01:56.7]} 23. Nf3 {[%clk 0:02:01.6]} 23... Ne3 {[%clk
0:01:39.3]} 24. Bxe3 {[%clk 0:01:57.7]} 24... Bxe3 {[%clk 0:01:40.2]} 25. Rce1
{[%clk 0:01:58.2]} 25... Bd4 {[%clk 0:01:31.6]} 26. fxg7 {[%clk 0:01:56.8]}
26... Bxg7 {[%clk 0:01:29.8]} 27. h4 {[%clk 0:01:45.1]} 27... Kh8 {[%clk
0:01:20.2]} 28. h5 {[%clk 0:01:44.8]} 28... h6 {[%clk 0:01:18.6]} 29. gxh6
{[%clk 0:01:39.6]} 29... Bxh6 {[%clk 0:01:18]} 30. Re5 {[%clk 0:01:39.8]} 30...
Rg8 {[%clk 0:01:12.5]} 31. Qh3 {[%clk 0:01:28]} 31... Qb7 {[%clk 0:01:09]} 32.
Qh4 {[%clk 0:01:28.3]} 32... Rg7 {[%clk 0:01:01.4]} 33. Qf6 {[%clk 0:01:24.7]}
33... Kh7 {[%clk 0:01:01.6]} 34. Kh2 {[%clk 0:01:10.2]} 34... Rag8 {[%clk
0:01:00.7]} 35. Rf2 {[%clk 0:01:05.7]} 35... d2 {[%clk 0:00:57]} 36. Rxd2 {[%clk
0:00:14.8]} 36... Rg3 {[%clk 0:00:36.1]} 37. Rf2 {[%clk 0:00:04.7]} 37... R8g4
{[%clk 0:00:27.9]} 38. Ng5+ {[%clk 0:00:04.3]} 38... Rxg5 {[%clk 0:00:24]} 39.
Qxf7+ {[%clk 0:00:04]} 39... Qxf7 {[%clk 0:00:24.3]} 40. Rxf7+ {[%clk
0:00:04.2]} 40... Rg7 {[%clk 0:00:24.9]} 41. Rf6 {[%clk 0:00:04.1]} 41... R3g5
{[%clk 0:00:20]} 42. Rexe6 {[%clk 0:00:02.3]} 42... Rxh5# {[%clk 0:00:19.7]} 0-1

[Event "Late-Titled-Tuesday-Blitz-June-18-2024"]
[Site "Chess.com"]
[Date "2024.06.18"]
[Round "1"]
[White "aexmi"]
[Black "KingCyber19"]
[Result "0-1"]
[WhiteElo "2278"]
[BlackElo "2617"]
[TimeControl "180+1"]
[EndTime "14:07:24 PDT"]
[Termination "KingCyber19 won by resignation"]

1. d4 {[%clk 0:02:58.5]} 1... d5 {[%clk 0:02:59.3]} 2. Bf4 {[%clk 0:02:58.2]}
2... Nf6 {[%clk 0:02:57.8]} 3. e3 {[%clk 0:02:58.3]} 3... e6 {[%clk 0:02:57.3]}
4. Nf3 {[%clk 0:02:57.6]} 4... c5 {[%clk 0:02:56.8]} 5. c3 {[%clk 0:02:56.3]}
5... Bd6 {[%clk 0:02:55.6]} 6. Bg3 {[%clk 0:02:55.2]} 6... O-O {[%clk
0:02:50.9]} 7. Nbd2 {[%clk 0:02:55.4]} 7... b6 {[%clk 0:02:45.6]} 8. Bd3 {[%clk
0:02:38.4]} 8... Bb7 {[%clk 0:02:41.2]} 9. Ne5 {[%clk 0:02:33.3]} 9... Ne4
{[%clk 0:02:31.6]} 10. Qc2 {[%clk 0:02:09.2]} 10... f5 {[%clk 0:02:14.2]} 11. f4
{[%clk 0:02:04.7]} 11... Nd7 {[%clk 0:02:06.2]} 12. Nxe4 {[%clk 0:02:01.1]}
12... dxe4 {[%clk 0:02:01.5]} 13. Bc4 {[%clk 0:01:56.2]} 13... Bd5 {[%clk
0:01:59.1]} 14. Qb3 {[%clk 0:01:46.9]} 14... Nf6 {[%clk 0:01:53.8]} 15. Rd1
{[%clk 0:01:40.4]} 15... cxd4 {[%clk 0:01:48.1]} 16. cxd4 {[%clk 0:01:34.4]}
16... Bxc4 {[%clk 0:01:27.5]} 17. Nxc4 {[%clk 0:01:30.8]} 17... Nd5 {[%clk
0:01:25.3]} 18. O-O {[%clk 0:01:26.2]} 18... Rc8 {[%clk 0:01:23.1]} 19. Bf2
{[%clk 0:01:17.7]} 19... Qd7 {[%clk 0:01:10.1]} 20. Ne5 {[%clk 0:01:15.6]} 20...
Bxe5 {[%clk 0:01:06.8]} 21. dxe5 {[%clk 0:01:10.7]} 21... Rc7 {[%clk 0:00:59.7]}
22. Rc1 {[%clk 0:00:53.5]} 22... Rfc8 {[%clk 0:00:59.1]} 23. Rxc7 {[%clk
0:00:53.6]} 23... Qxc7 {[%clk 0:00:58.6]} 24. Rd1 {[%clk 0:00:54.2]} 24... Qc2
{[%clk 0:00:54.8]} 25. Qxc2 {[%clk 0:00:39.3]} 25... Rxc2 {[%clk 0:00:55.7]} 26.
Rb1 {[%clk 0:00:37.7]} 26... Nb4 {[%clk 0:00:52.5]} 27. Be1 {[%clk 0:00:20.4]}
27... Nd3 {[%clk 0:00:52.6]} 28. Bc3 {[%clk 0:00:18.5]} 28... a5 {[%clk
0:00:50.1]} 29. Bd4 {[%clk 0:00:16.6]} 29... b5 {[%clk 0:00:48.8]} 30. a3 {[%clk
0:00:16.7]} 30... b4 {[%clk 0:00:46]} 31. axb4 {[%clk 0:00:16.2]} 31... axb4
{[%clk 0:00:44.1]} 32. h3 {[%clk 0:00:16.6]} 32... g5 {[%clk 0:00:38.1]} 33.
fxg5 {[%clk 0:00:13.4]} 33... f4 {[%clk 0:00:36.2]} 34. exf4 {[%clk 0:00:13.2]}
34... Nxf4 {[%clk 0:00:37.1]} 35. Bf2 {[%clk 0:00:09.2]} 35... Kg7 {[%clk
0:00:32.7]} 36. Ra1 {[%clk 0:00:04.8]} 36... Rxb2 {[%clk 0:00:29.2]} 37. Ra7+
{[%clk 0:00:04.5]} 37... Kg6 {[%clk 0:00:29.4]} 38. h4 {[%clk 0:00:05]} 38... b3
{[%clk 0:00:24.7]} 39. g4 {[%clk 0:00:04.1]} 39... Nh3+ {[%clk 0:00:22]} 40. Kg2
{[%clk 0:00:04.3]} 40... Nxf2 {[%clk 0:00:22]} 41. h5+ {[%clk 0:00:03.7]} 41...
Kxg5 {[%clk 0:00:21.9]} 42. Rg7+ {[%clk 0:00:03.8]} 42... Kf4 {[%clk 0:00:21.6]}
0-1

[Event "Late-Titled-Tuesday-Blitz-June-18-2024"]
[Site "Chess.com"]
[Date "2024.06.18"]
[Round "1"]
[White "ChessSG1"]
[Black "sergiochess83"]
[Result "1/2-1/2"]
[WhiteElo "2494"]
[BlackElo "2875"]
[TimeControl "180+1"]
[EndTime "14:07:29 PDT"]
[Termination "Game drawn by repetition"]

1. c4 {[%clk 0:03:00.9]} 1... e5 {[%clk 0:02:59.6]} 2. g3 {[%clk 0:03:00.6]}
2... Nf6 {[%clk 0:02:59.3]} 3. Bg2 {[%clk 0:03:00.6]} 3... c6 {[%clk 0:02:59.9]}
4. Nf3 {[%clk 0:03:00]} 4... e4 {[%clk 0:02:59.9]} 5. Nd4 {[%clk 0:02:59.9]}
5... d5 {[%clk 0:03:00.6]} 6. d3 {[%clk 0:02:52.6]} 6... Bb4+ {[%clk 0:02:29.3]}
7. Nc3 {[%clk 0:02:36.7]} 7... c5 {[%clk 0:01:56.4]} 8. Nc2 {[%clk 0:02:25.1]}
8... Bxc3+ {[%clk 0:01:56.3]} 9. bxc3 {[%clk 0:02:25.4]} 9... dxc4 {[%clk
0:01:57.2]} 10. dxe4 {[%clk 0:02:13.1]} 10... Qxd1+ {[%clk 0:01:58.1]} 11. Kxd1
{[%clk 0:02:13.6]} 11... O-O {[%clk 0:01:43.3]} 12. Ne3 {[%clk 0:02:03.1]} 12...
Be6 {[%clk 0:01:29.5]} 13. e5 {[%clk 0:01:55.8]} 13... Rd8+ {[%clk 0:01:28.5]}
14. Kc2 {[%clk 0:01:36]} 14... Nd5 {[%clk 0:01:01.8]} 15. Nxd5 {[%clk
0:01:35.3]} 15... Rxd5 {[%clk 0:01:02.6]} 16. Bxd5 {[%clk 0:01:29.1]} 16... Bxd5
{[%clk 0:01:03.5]} 17. f3 {[%clk 0:01:29.6]} 17... Nc6 {[%clk 0:01:03.2]} 18.
Rd1 {[%clk 0:01:21.3]} 18... Be6 {[%clk 0:01:03.2]} 19. Bf4 {[%clk 0:01:00.2]}
19... b5 {[%clk 0:01:02.8]} 20. Rd6 {[%clk 0:00:55.2]} 20... Rc8 {[%clk
0:01:02.5]} 21. Rad1 {[%clk 0:00:52.8]} 21... h6 {[%clk 0:01:02.9]} 22. h4
{[%clk 0:00:27.6]} 22... b4 {[%clk 0:01:02.6]} 23. Be3 {[%clk 0:00:20]} 23...
Kh7 {[%clk 0:00:50.4]} 24. Bxc5 {[%clk 0:00:18.7]} 24... b3+ {[%clk 0:00:51]}
25. Kb2 {[%clk 0:00:18.4]} 25... Nxe5 {[%clk 0:00:51.2]} 26. Bd4 {[%clk
0:00:17.1]} 26... Nc6 {[%clk 0:00:48.4]} 27. axb3 {[%clk 0:00:13.2]} 27... cxb3
{[%clk 0:00:48.1]} 28. Ra1 {[%clk 0:00:13.2]} 28... a5 {[%clk 0:00:46.7]} 29.
Rxc6 {[%clk 0:00:13.5]} 29... Rxc6 {[%clk 0:00:46.5]} 30. Rxa5 {[%clk
0:00:14.2]} 30... Bc4 {[%clk 0:00:44.9]} 31. e4 {[%clk 0:00:14.2]} 31... f6
{[%clk 0:00:44.5]} 32. f4 {[%clk 0:00:14.5]} 32... Kg6 {[%clk 0:00:41.6]} 33.
Ra7 {[%clk 0:00:14.6]} 33... Kh5 {[%clk 0:00:18.4]} 34. Rxg7 {[%clk 0:00:14.1]}
34... Ra6 {[%clk 0:00:18.5]} 35. Ra7 {[%clk 0:00:14.1]} 35... Rxa7 {[%clk
0:00:16.8]} 36. Bxa7 {[%clk 0:00:15]} 36... Kg4 {[%clk 0:00:17.3]} 37. Bf2
{[%clk 0:00:15.2]} 37... Kf3 {[%clk 0:00:17.4]} 38. Bd4 {[%clk 0:00:10.3]} 38...
Kxe4 {[%clk 0:00:15.3]} 39. Bxf6 {[%clk 0:00:10.4]} 39... h5 {[%clk 0:00:16]}
40. Be5 {[%clk 0:00:08.9]} 40... Kf3 {[%clk 0:00:14.8]} 41. f5 {[%clk
0:00:08.9]} 41... Ke4 {[%clk 0:00:15]} 42. Bf4 {[%clk 0:00:07.9]} 42... Kxf5
{[%clk 0:00:15.3]} 43. Bb8 {[%clk 0:00:07.4]} 43... Kg4 {[%clk 0:00:15.8]} 44.
Bf4 {[%clk 0:00:07.5]} 44... Kf3 {[%clk 0:00:16.2]} 45. Bb8 {[%clk 0:00:07.9]}
45... Kg4 {[%clk 0:00:16]} 46. Bf4 {[%clk 0:00:08.4]} 46... Kf3 {[%clk
0:00:16.5]} 47. Bb8 {[%clk 0:00:09]} 47... Kg4 {[%clk 0:00:16.9]} 1/2-1/2

[Event "Late-Titled-Tuesday-Blitz-June-18-2024"]
[Site "Chess.com"]
[Date "2024.06.18"]
[Round "1"]
[White "AlivodicDario"]
[Black "Mikhail_Golubev"]
[Result "0-1"]
[WhiteElo "2358"]
[BlackElo "2663"]
[TimeControl "180+1"]
[EndTime "14:07:29 PDT"]
[Termination "Mikhail_Golubev won on time"]

1. d4 {[%clk 0:03:00.5]} 1... Nf6 {[%clk 0:02:59.4]} 2. c4 {[%clk 0:03:00.9]}
2... d6 {[%clk 0:02:59.9]} 3. Nc3 {[%clk 0:03:01.1]} 3... g6 {[%clk 0:03:00.5]}
4. e4 {[%clk 0:03:01.5]} 4... Bg7 {[%clk 0:03:01]} 5. Nge2 {[%clk 0:03:02.3]}
5... Nbd7 {[%clk 0:02:58.8]} 6. Ng3 {[%clk 0:03:02.3]} 6... e5 {[%clk
0:02:58.7]} 7. d5 {[%clk 0:03:02.6]} 7... h5 {[%clk 0:02:58.8]} 8. Bg5 {[%clk
0:02:59.4]} 8... Bh6 {[%clk 0:02:49.7]} 9. Bxh6 {[%clk 0:02:55.5]} 9... Rxh6
{[%clk 0:02:49.7]} 10. Qd2 {[%clk 0:02:56.2]} 10... Rh8 {[%clk 0:02:49.7]} 11.
O-O-O {[%clk 0:02:56.2]} 11... a5 {[%clk 0:02:42.5]} 12. Bd3 {[%clk 0:02:54.6]}
12... Nc5 {[%clk 0:02:39.7]} 13. Rhf1 {[%clk 0:02:53.1]} 13... h4 {[%clk
0:02:25.2]} 14. Nge2 {[%clk 0:02:47]} 14... Nh5 {[%clk 0:02:08.5]} 15. f4 {[%clk
0:02:44.1]} 15... exf4 {[%clk 0:02:07]} 16. Nxf4 {[%clk 0:02:45]} 16... Qg5
{[%clk 0:01:58.3]} 17. Bc2 {[%clk 0:02:23.9]} 17... Bd7 {[%clk 0:01:31.4]} 18.
Kb1 {[%clk 0:02:08]} 18... Nxf4 {[%clk 0:01:03.5]} 19. Rxf4 {[%clk 0:02:05.9]}
19... f6 {[%clk 0:00:55.8]} 20. Qf2 {[%clk 0:02:04.3]} 20... Ke7 {[%clk
0:00:45.6]} 21. Rf1 {[%clk 0:02:02.6]} 21... Raf8 {[%clk 0:00:44.5]} 22. Nd1
{[%clk 0:01:29.8]} 22... Qe5 {[%clk 0:00:28.6]} 23. Rxh4 {[%clk 0:01:22.9]}
23... Rxh4 {[%clk 0:00:28.6]} 24. Qxh4 {[%clk 0:01:23.8]} 24... b5 {[%clk
0:00:28.7]} 25. Qh7+ {[%clk 0:01:07.1]} 25... Rf7 {[%clk 0:00:28.5]} 26. Qxg6
{[%clk 0:01:07.6]} 26... bxc4 {[%clk 0:00:29.1]} 27. Ne3 {[%clk 0:01:08]} 27...
c3 {[%clk 0:00:27.9]} 28. Bd1 {[%clk 0:00:26.4]} 28... Nxe4 {[%clk 0:00:22.8]}
29. Bh5 {[%clk 0:00:19.5]} 29... Be8 {[%clk 0:00:13.7]} 30. Nc4 {[%clk
0:00:09.7]} 30... Qd4 {[%clk 0:00:10.3]} 31. Re1 {[%clk 0:00:04.4]} 31... f5
{[%clk 0:00:09.8]} 32. Qg5+ {[%clk 0:00:03.3]} 32... Kf8 {[%clk 0:00:08.9]} 33.
Qh6+ {[%clk 0:00:03.4]} 33... Kg8 {[%clk 0:00:07.8]} 34. Bxf7+ {[%clk
0:00:03.1]} 34... Bxf7 {[%clk 0:00:07.1]} 35. Qh4 {[%clk 0:00:01.9]} 35... Nd2+
{[%clk 0:00:06.6]} 36. Nxd2 {[%clk 0:00:02.4]} 36... Qxh4 {[%clk 0:00:07.3]} 37.
Nf3 {[%clk 0:00:02.9]} 37... Qf2 {[%clk 0:00:06.8]} 38. bxc3 {[%clk 0:00:02.3]}
38... f4 {[%clk 0:00:07.2]} 39. Rc1 {[%clk 0:00:01]} 39... Bg6+ {[%clk
0:00:07.2]} 0-1

[Event "Late-Titled-Tuesday-Blitz-June-18-2024"]
[Site "Chess.com"]
[Date "2024.06.18"]
[Round "1"]
[White "Dexter_Dyke"]
[Black "Fandorine"]
[Result "1/2-1/2"]
[WhiteElo "2505"]
[BlackElo "2918"]
[TimeControl "180+1"]
[EndTime "14:07:31 PDT"]
[Termination "Game drawn by agreement"]

1. e4 {[%clk 0:02:58.8]} 1... e5 {[%clk 0:02:57.1]} 2. Nf3 {[%clk 0:02:58]} 2...
Nc6 {[%clk 0:02:55.1]} 3. Nc3 {[%clk 0:02:57.8]} 3... g6 {[%clk 0:02:54.3]} 4.
Bb5 {[%clk 0:02:53]} 4... Bg7 {[%clk 0:02:46.3]} 5. O-O {[%clk 0:02:51.6]} 5...
Nge7 {[%clk 0:02:42]} 6. d3 {[%clk 0:02:43.5]} 6... d6 {[%clk 0:02:41.6]} 7. Be3
{[%clk 0:02:35.6]} 7... O-O {[%clk 0:02:36.9]} 8. Qd2 {[%clk 0:02:31.8]} 8...
Nd4 {[%clk 0:02:27.3]} 9. Bxd4 {[%clk 0:02:24.1]} 9... exd4 {[%clk 0:02:24.7]}
10. Ne2 {[%clk 0:02:24.3]} 10... c5 {[%clk 0:02:22.4]} 11. Bc4 {[%clk
0:02:21.8]} 11... Nc6 {[%clk 0:02:08.8]} 12. a3 {[%clk 0:02:15.8]} 12... Bg4
{[%clk 0:02:03.7]} 13. Ne1 {[%clk 0:02:08.8]} 13... Be6 {[%clk 0:01:57.5]} 14.
f4 {[%clk 0:01:57.8]} 14... Bxc4 {[%clk 0:01:47.5]} 15. dxc4 {[%clk 0:01:58.7]}
15... Qe7 {[%clk 0:01:47.6]} 16. Ng3 {[%clk 0:01:53.2]} 16... Rae8 {[%clk
0:01:44.3]} 17. Nd3 {[%clk 0:01:46.5]} 17... f5 {[%clk 0:01:37.6]} 18. Rae1
{[%clk 0:01:44.7]} 18... Qf7 {[%clk 0:01:35]} 19. exf5 {[%clk 0:01:41.7]} 19...
gxf5 {[%clk 0:01:29.3]} 20. b3 {[%clk 0:01:39.8]} 20... a6 {[%clk 0:01:26.5]}
21. Rxe8 {[%clk 0:01:35.7]} 21... Rxe8 {[%clk 0:01:26.3]} 22. Re1 {[%clk
0:01:36.6]} 22... Re3 {[%clk 0:01:25.2]} 23. Nf1 {[%clk 0:01:32.6]} 23... Rxe1
{[%clk 0:01:22.4]} 24. Qxe1 {[%clk 0:01:33.5]} 24... Qe7 {[%clk 0:01:11]} 25.
Qxe7 {[%clk 0:01:31.2]} 25... Nxe7 {[%clk 0:01:11.9]} 26. Kf2 {[%clk 0:01:30]}
26... Kf7 {[%clk 0:01:12.1]} 27. Kf3 {[%clk 0:01:29.6]} 27... h5 {[%clk
0:01:08.5]} 28. g3 {[%clk 0:01:27.6]} 28... Bf6 {[%clk 0:01:08]} 29. h3 {[%clk
0:01:27.2]} 29... Ke6 {[%clk 0:01:06.2]} 30. g4 {[%clk 0:01:27.1]} 30... hxg4+
{[%clk 0:01:06.5]} 31. hxg4 {[%clk 0:01:27.4]} 31... fxg4+ {[%clk 0:01:07.4]}
32. Kxg4 {[%clk 0:01:27.8]} 32... Nf5 {[%clk 0:01:08.3]} 33. Kf3 {[%clk
0:01:23]} 33... b5 {[%clk 0:01:03.2]} 34. cxb5 {[%clk 0:01:19.8]} 34... axb5
{[%clk 0:01:03.5]} 35. a4 {[%clk 0:01:20.2]} 35... bxa4 {[%clk 0:01:02.8]} 36.
bxa4 {[%clk 0:01:20.1]} 36... c4 {[%clk 0:00:57.9]} 37. Nb4 {[%clk 0:01:18]}
37... Bd8 {[%clk 0:00:58.1]} 38. Ke4 {[%clk 0:01:11.2]} 38... Ba5 {[%clk
0:00:44.4]} 39. Nc6 {[%clk 0:00:58.9]} 39... d5+ {[%clk 0:00:42.4]} 40. Kf3
{[%clk 0:00:59.4]} 40... Bc7 {[%clk 0:00:41]} 41. Ng3 {[%clk 0:00:47.2]} 41...
d3 {[%clk 0:00:20.1]} 42. Nxf5 {[%clk 0:00:34.5]} 42... Kxf5 {[%clk 0:00:20.2]}
43. cxd3 {[%clk 0:00:31.1]} 43... cxd3 {[%clk 0:00:20.4]} 44. Ke3 {[%clk
0:00:28.8]} 44... Bxf4+ {[%clk 0:00:15.7]} 45. Kxd3 {[%clk 0:00:29.2]} 45... Bc7
{[%clk 0:00:15.4]} 46. Ne7+ {[%clk 0:00:27.9]} 46... Ke6 {[%clk 0:00:15.6]} 47.
Nxd5 {[%clk 0:00:28.8]} 47... Kxd5 {[%clk 0:00:16.5]} 48. Kc3 {[%clk 0:00:28.2]}
48... Ba5+ {[%clk 0:00:17.4]} 49. Kb3 {[%clk 0:00:29.1]} 49... Kc5 {[%clk
0:00:18]} 50. Kc2 {[%clk 0:00:30]} 50... Kd4 {[%clk 0:00:18.9]} 51. Kb3 {[%clk
0:00:30.3]} 51... Kd3 {[%clk 0:00:18.4]} 52. Kb2 {[%clk 0:00:28.2]} 1/2-1/2